[Event "Early-Titled-Tuesday-Blitz-March-19-2024"]
[Site "Chess.com"]
[Date "2024.03.19"]
[Round "10"]
[White "margarita_2703"]
[Black "MikeWizard"]
[Result "1-0"]
[WhiteElo "2330"]
[BlackElo "2139"]
[TimeControl "180+1"]
[EndTime "9:55:52 PDT"]
[Termination "margarita_2703 won on time"]

1. e4 {[%clk 0:02:51.8]} 1... d6 {[%clk 0:02:59.5]} 2. d4 {[%clk 0:02:51.4]}
2... Nf6 {[%clk 0:02:54.7]} 3. Nc3 {[%clk 0:02:50.9]} 3... Nbd7 {[%clk
0:02:50.8]} 4. h3 {[%clk 0:02:50.3]} 4... e5 {[%clk 0:02:50.7]} 5. Nf3 {[%clk
0:02:50.1]} 5... Be7 {[%clk 0:02:48.8]} 6. Bc4 {[%clk 0:02:46.5]} 6... c6 {[%clk
0:02:47.4]} 7. a4 {[%clk 0:02:46.3]} 7... Qc7 {[%clk 0:02:47.2]} 8. O-O {[%clk
0:02:45.9]} 8... h6 {[%clk 0:02:43.9]} 9. Be3 {[%clk 0:02:43.8]} 9... g5 {[%clk
0:02:38.2]} 10. Nh2 {[%clk 0:02:27.9]} 10... Nf8 {[%clk 0:02:33.5]} 11. f3
{[%clk 0:02:15.7]} 11... Ng6 {[%clk 0:02:30.5]} 12. Ng4 {[%clk 0:02:14.4]} 12...
Nh5 {[%clk 0:02:20]} 13. dxe5 {[%clk 0:02:01.6]} 13... dxe5 {[%clk 0:02:17.7]}
14. Qe1 {[%clk 0:01:53.2]} 14... Nhf4 {[%clk 0:02:11.5]} 15. Bxf4 {[%clk
0:01:47.7]} 15... gxf4 {[%clk 0:02:05.4]} 16. Kh1 {[%clk 0:01:42]} 16... Be6
{[%clk 0:02:01.3]} 17. Bxe6 {[%clk 0:01:41.3]} 17... fxe6 {[%clk 0:02:01.3]} 18.
Qe2 {[%clk 0:01:40.7]} 18... Kf7 {[%clk 0:01:58.3]} 19. Qc4 {[%clk 0:01:17.8]}
19... Qb6 {[%clk 0:01:48.8]} 20. b3 {[%clk 0:01:16.1]} 20... Qc5 {[%clk
0:01:48.4]} 21. Qxc5 {[%clk 0:01:13.1]} 21... Bxc5 {[%clk 0:01:47.6]} 22. Rad1
{[%clk 0:01:13.6]} 22... Bd4 {[%clk 0:01:38.5]} 23. Ne2 {[%clk 0:01:13.1]} 23...
Bc5 {[%clk 0:01:31.8]} 24. Rd7+ {[%clk 0:01:12.3]} 24... Be7 {[%clk 0:01:31.3]}
25. Rxb7 {[%clk 0:01:11]} 25... h5 {[%clk 0:01:30.5]} 26. Nf2 {[%clk 0:01:10.4]}
26... Rhd8 {[%clk 0:01:29.7]} 27. Nd3 {[%clk 0:01:10.1]} 27... Kf6 {[%clk
0:01:12.1]} 28. Nc3 {[%clk 0:01:07.5]} 28... Nf8 {[%clk 0:01:05]} 29. Nd1 {[%clk
0:01:05.9]} 29... Nd7 {[%clk 0:01:04.2]} 30. N1b2 {[%clk 0:01:05.8]} 30... Nb6
{[%clk 0:01:02.3]} 31. a5 {[%clk 0:01:04.4]} 31... Nd7 {[%clk 0:01:00]} 32. Nc4
{[%clk 0:01:04.6]} 32... Rg8 {[%clk 0:00:56.9]} 33. Rd1 {[%clk 0:01:01]} 33...
Nc5 {[%clk 0:00:54.1]} 34. Nxc5 {[%clk 0:01:00]} 34... Bxc5 {[%clk 0:00:54.1]}
35. Rdd7 {[%clk 0:01:00.9]} 35... Bd4 {[%clk 0:00:52.1]} 36. Rf7+ {[%clk
0:00:59.9]} 36... Kg6 {[%clk 0:00:51.5]} 37. a6 {[%clk 0:00:59.6]} 37... Rgd8
{[%clk 0:00:46.3]} 38. Rfd7 {[%clk 0:00:59.5]} 38... Rxd7 {[%clk 0:00:45.4]} 39.
Rxd7 {[%clk 0:01:00.4]} 39... Kf6 {[%clk 0:00:42.8]} 40. Nd6 {[%clk 0:00:51.4]}
40... Rb8 {[%clk 0:00:29.6]} 41. Rb7 {[%clk 0:00:50.4]} 41... Rd8 {[%clk
0:00:28.9]} 42. Nc4 {[%clk 0:00:45.1]} 42... Rc8 {[%clk 0:00:24.6]} 43. Kh2
{[%clk 0:00:42.9]} 43... Kg6 {[%clk 0:00:21.9]} 44. h4 {[%clk 0:00:42.5]} 44...
Kf6 {[%clk 0:00:20.8]} 45. Kh3 {[%clk 0:00:42.3]} 45... Rg8 {[%clk 0:00:20.3]}
46. Kh2 {[%clk 0:00:39.4]} 46... Rc8 {[%clk 0:00:19.1]} 47. c3 {[%clk
0:00:33.9]} 47... Bxc3 {[%clk 0:00:16.9]} 48. Rxa7 {[%clk 0:00:34]} 48... Rb8
{[%clk 0:00:15.7]} 49. Rb7 {[%clk 0:00:34.1]} 49... Ra8 {[%clk 0:00:15.9]} 50.
Rb6 {[%clk 0:00:30.6]} 50... c5 {[%clk 0:00:11.9]} 51. Kg1 {[%clk 0:00:27.6]}
51... Be1 {[%clk 0:00:08.6]} 52. Kf1 {[%clk 0:00:27.6]} 52... Bxh4 {[%clk
0:00:08.3]} 53. Ke2 {[%clk 0:00:24.8]} 53... Bg3 {[%clk 0:00:07.6]} 54. Na3
{[%clk 0:00:23.6]} 54... h4 {[%clk 0:00:07.5]} 55. Nb5 {[%clk 0:00:23.7]} 55...
Ke7 {[%clk 0:00:03.5]} 56. a7 {[%clk 0:00:23.8]} 1-0

[Event "Early-Titled-Tuesday-Blitz-March-19-2024"]
[Site "Chess.com"]
[Date "2024.03.19"]
[Round "10"]
[White "ketster"]
[Black "SuperPower2011"]
[Result "0-1"]
[WhiteElo "2585"]
[BlackElo "2783"]
[TimeControl "180+1"]
[EndTime "9:55:53 PDT"]
[Termination "SuperPower2011 won on time"]

1. d4 {[%clk 0:03:00.9]} 1... Nf6 {[%clk 0:03:00]} 2. c4 {[%clk 0:02:59.3]} 2...
e6 {[%clk 0:03:00.1]} 3. Nc3 {[%clk 0:02:59.1]} 3... d5 {[%clk 0:02:59.8]} 4.
Nf3 {[%clk 0:02:59]} 4... dxc4 {[%clk 0:02:57.2]} 5. e4 {[%clk 0:02:58.8]} 5...
b5 {[%clk 0:02:57.7]} 6. e5 {[%clk 0:02:58.5]} 6... Nd5 {[%clk 0:02:57.1]} 7.
Nxb5 {[%clk 0:02:59]} 7... Nb6 {[%clk 0:02:57.8]} 8. Nc3 {[%clk 0:02:59.2]} 8...
Nc6 {[%clk 0:02:56.3]} 9. h4 {[%clk 0:02:59.5]} 9... Be7 {[%clk 0:02:41.8]} 10.
h5 {[%clk 0:02:58.5]} 10... h6 {[%clk 0:02:42.1]} 11. Rh3 {[%clk 0:02:56.2]}
11... Nb4 {[%clk 0:02:35.2]} 12. Be3 {[%clk 0:02:53.3]} 12... N4d5 {[%clk
0:02:33.6]} 13. Bxc4 {[%clk 0:02:47.2]} 13... Bb7 {[%clk 0:02:00.9]} 14. Bb5+
{[%clk 0:02:43.9]} 14... Kf8 {[%clk 0:02:00.4]} 15. Rg3 {[%clk 0:02:23.7]} 15...
a6 {[%clk 0:01:57.9]} 16. Bd3 {[%clk 0:02:18.4]} 16... c5 {[%clk 0:01:58]} 17.
Qe2 {[%clk 0:02:02.7]} 17... cxd4 {[%clk 0:01:39.6]} 18. Nxd4 {[%clk 0:01:53.8]}
18... Nxe3 {[%clk 0:01:35.3]} 19. Qxe3 {[%clk 0:01:50.1]} 19... Bg5 {[%clk
0:01:35.1]} 20. f4 {[%clk 0:01:30.5]} 20... Bh4 {[%clk 0:01:33.7]} 21. Nde2
{[%clk 0:01:14.7]} 21... Nd5 {[%clk 0:01:22]} 22. Nxd5 {[%clk 0:00:45.1]} 22...
Qxd5 {[%clk 0:01:20.4]} 23. O-O-O {[%clk 0:00:45.4]} 23... Bxg3 {[%clk
0:01:12.2]} 24. Qxg3 {[%clk 0:00:42.8]} 24... Qxa2 {[%clk 0:01:06.3]} 25. Nc3
{[%clk 0:00:40.7]} 25... Rc8 {[%clk 0:01:05.5]} 26. f5 {[%clk 0:00:37.2]} 26...
Qb3 {[%clk 0:00:40]} 27. Bc2 {[%clk 0:00:30.9]} 27... Qb6 {[%clk 0:00:36.9]} 28.
Rd6 {[%clk 0:00:22]} 28... Qg1+ {[%clk 0:00:35.9]} 29. Rd1 {[%clk 0:00:21.8]}
29... Qb6 {[%clk 0:00:35.7]} 30. Rd6 {[%clk 0:00:20.6]} 30... Rc6 {[%clk
0:00:22.7]} 31. Rd7 {[%clk 0:00:14.3]} 31... exf5 {[%clk 0:00:15.3]} 32. Bxf5
{[%clk 0:00:13.9]} 32... Bc8 {[%clk 0:00:14.7]} 33. e6 {[%clk 0:00:03.5]} 33...
Bxd7 {[%clk 0:00:12.8]} 34. exd7 {[%clk 0:00:04.4]} 34... Qg1+ {[%clk
0:00:13.1]} 35. Kc2 {[%clk 0:00:04.1]} 35... Ke7 {[%clk 0:00:08.6]} 36. Qe5+
{[%clk 0:00:04.1]} 36... Kd8 {[%clk 0:00:08.7]} 37. Qb8+ {[%clk 0:00:04]} 37...
Ke7 {[%clk 0:00:08.4]} 38. Qxh8 {[%clk 0:00:03.2]} 38... Qxg2+ {[%clk
0:00:08.4]} 39. Kc1 {[%clk 0:00:03.2]} 39... Qf1+ {[%clk 0:00:08.2]} 40. Kd2
{[%clk 0:00:01.7]} 40... Rd6+ {[%clk 0:00:06.5]} 41. Ke3 {[%clk 0:00:01.9]}
41... Qe1+ {[%clk 0:00:05.6]} 42. Ne2 {[%clk 0:00:02.3]} 42... Qd2+ {[%clk
0:00:05.3]} 43. Kf3 {[%clk 0:00:02]} 43... Qd5+ {[%clk 0:00:06]} 44. Be4 {[%clk
0:00:01.4]} 44... Qxh5+ {[%clk 0:00:06.1]} 45. Ke3 {[%clk 0:00:01.4]} 45... Qg5+
{[%clk 0:00:05.9]} 46. Kf3 {[%clk 0:00:01]} 46... Rxd7 {[%clk 0:00:05.9]} 0-1

[Event "Early-Titled-Tuesday-Blitz-March-19-2024"]
[Site "Chess.com"]
[Date "2024.03.19"]
[Round "10"]
[White "Dyadya81"]
[Black "Aradhya2000"]
[Result "1-0"]
[WhiteElo "2944"]
[BlackElo "2732"]
[TimeControl "180+1"]
[EndTime "9:55:54 PDT"]
[Termination "Dyadya81 won by resignation"]

1. e4 {[%clk 0:03:00.9]} 1... e5 {[%clk 0:03:00.3]} 2. Nf3 {[%clk 0:03:00.9]}
2... Nc6 {[%clk 0:03:00.9]} 3. d4 {[%clk 0:03:01]} 3... exd4 {[%clk 0:03:01.1]}
4. Nxd4 {[%clk 0:03:01.9]} 4... Nf6 {[%clk 0:03:01.8]} 5. Nc3 {[%clk 0:03:02.1]}
5... Nxe4 {[%clk 0:03:00.1]} 6. Nxe4 {[%clk 0:03:01.1]} 6... Qe7 {[%clk
0:03:00.4]} 7. Bd3 {[%clk 0:03:00.7]} 7... Nxd4 {[%clk 0:03:00.6]} 8. O-O {[%clk
0:03:01.4]} 8... d5 {[%clk 0:02:58.1]} 9. Bc4 {[%clk 0:03:01.7]} 9... dxc4
{[%clk 0:02:44.5]} 10. Qxd4 {[%clk 0:03:00.9]} 10... Be6 {[%clk 0:02:45.1]} 11.
Re1 {[%clk 0:02:26.3]} 11... Qd7 {[%clk 0:02:36]} 12. Qc3 {[%clk 0:02:17.3]}
12... O-O-O {[%clk 0:02:34]} 13. Bg5 {[%clk 0:02:05.3]} 13... f6 {[%clk
0:01:16.7]} 14. Nxf6 {[%clk 0:02:03.9]} 14... gxf6 {[%clk 0:01:17.1]} 15. Qxf6
{[%clk 0:02:04.8]} 15... Bb4 {[%clk 0:00:54.4]} 16. c3 {[%clk 0:01:54.5]} 16...
Bd5 {[%clk 0:00:49]} 17. cxb4 {[%clk 0:01:51.4]} 17... Qg4 {[%clk 0:00:43.7]}
18. f3 {[%clk 0:01:46]} 18... Bxf3 {[%clk 0:00:43.7]} 19. Qe6+ {[%clk
0:01:45.3]} 19... Qxe6 {[%clk 0:00:41.6]} 20. Rxe6 {[%clk 0:01:46.2]} 20... Bd5
{[%clk 0:00:41.9]} 21. Re5 {[%clk 0:01:39.5]} 21... Rd7 {[%clk 0:00:41.2]} 22.
Rae1 {[%clk 0:01:39.8]} 22... b5 {[%clk 0:00:35.9]} 23. Be7 {[%clk 0:01:30.6]}
23... Rg8 {[%clk 0:00:35.1]} 24. g3 {[%clk 0:01:29.7]} 24... Bc6 {[%clk
0:00:24.4]} 25. R1e2 {[%clk 0:01:16.7]} 25... Rd1+ {[%clk 0:00:23.6]} 26. Re1
{[%clk 0:01:16.1]} 26... Rd2 {[%clk 0:00:23.3]} 27. R5e2 {[%clk 0:01:09.9]}
27... Rd3 {[%clk 0:00:23]} 28. Bc5 {[%clk 0:01:08]} 28... a6 {[%clk 0:00:22.4]}
29. Rf2 {[%clk 0:01:04.5]} 29... h5 {[%clk 0:00:21.8]} 30. Re6 {[%clk
0:00:56.4]} 30... Rd1+ {[%clk 0:00:18.5]} 31. Rf1 {[%clk 0:00:56.3]} 31... Rxf1+
{[%clk 0:00:17.7]} 32. Kxf1 {[%clk 0:00:57.2]} 32... Kb7 {[%clk 0:00:18.4]} 33.
Re5 {[%clk 0:00:53.2]} 33... h4 {[%clk 0:00:17.4]} 34. gxh4 {[%clk 0:00:52.4]}
34... Rg2 {[%clk 0:00:16.6]} 35. Bf2 {[%clk 0:00:52.1]} 35... Rg4 {[%clk
0:00:16.6]} 36. Rg5 {[%clk 0:00:48.9]} 36... Rf4 {[%clk 0:00:15.3]} 37. Ke2
{[%clk 0:00:49.1]} 37... Rf6 {[%clk 0:00:12.6]} 38. Re5 {[%clk 0:00:47.7]} 38...
Bf3+ {[%clk 0:00:12.5]} 39. Ke3 {[%clk 0:00:47.4]} 39... Bg4 {[%clk 0:00:12.8]}
40. Bg3 {[%clk 0:00:46.5]} 40... Rf3+ {[%clk 0:00:12.7]} 41. Ke4 {[%clk
0:00:47.1]} 41... Rd3 {[%clk 0:00:12.7]} 42. Rg5 {[%clk 0:00:46.5]} 42... Bf3+
{[%clk 0:00:11.9]} 43. Kf4 {[%clk 0:00:47.2]} 43... c3 {[%clk 0:00:10.3]} 44.
bxc3 {[%clk 0:00:47.2]} 44... Rxc3 {[%clk 0:00:11.2]} 45. h5 {[%clk 0:00:47.9]}
45... Bd1 {[%clk 0:00:05.9]} 46. h6 {[%clk 0:00:48.4]} 46... Rc4+ {[%clk
0:00:06.5]} 47. Ke5 {[%clk 0:00:46.9]} 47... Bc2 {[%clk 0:00:07.1]} 48. Rg7
{[%clk 0:00:46.7]} 48... Rxb4 {[%clk 0:00:06.5]} 49. Kf6 {[%clk 0:00:46.4]}
49... Rc4 {[%clk 0:00:06]} 50. h7 {[%clk 0:00:46.8]} 50... Bxh7 {[%clk
0:00:05.9]} 51. Rxh7 {[%clk 0:00:47.7]} 51... a5 {[%clk 0:00:06.5]} 52. h4
{[%clk 0:00:48.1]} 52... b4 {[%clk 0:00:05.9]} 53. h5 {[%clk 0:00:48.3]} 53...
a4 {[%clk 0:00:06.5]} 54. Re7 {[%clk 0:00:46.8]} 54... b3 {[%clk 0:00:06.6]} 55.
axb3 {[%clk 0:00:47.7]} 55... axb3 {[%clk 0:00:06.8]} 56. Re3 {[%clk 0:00:47.4]}
56... Rb4 {[%clk 0:00:07.1]} 57. Re1 {[%clk 0:00:47.6]} 57... b2 {[%clk
0:00:06]} 58. Rb1 {[%clk 0:00:46.7]} 58... Rb6+ {[%clk 0:00:06.3]} 59. Kg7
{[%clk 0:00:45.7]} 59... Rb5 {[%clk 0:00:06.1]} 60. Kg6 {[%clk 0:00:44.8]} 60...
Kc6 {[%clk 0:00:05.9]} 61. h6 {[%clk 0:00:45.2]} 61... Kd7 {[%clk 0:00:05.5]}
62. h7 {[%clk 0:00:45.5]} 1-0

[Event "Early-Titled-Tuesday-Blitz-March-19-2024"]
[Site "Chess.com"]
[Date "2024.03.19"]
[Round "10"]
[White "Quattroporte300"]
[Black "vasblesk"]
[Result "0-1"]
[WhiteElo "2517"]
[BlackElo "2780"]
[TimeControl "180+1"]
[EndTime "9:55:56 PDT"]
[Termination "vasblesk won by resignation"]

1. e4 {[%clk 0:03:00.9]} 1... e5 {[%clk 0:02:59.1]} 2. Nf3 {[%clk 0:03:00.7]}
2... Nf6 {[%clk 0:02:59.7]} 3. Nc3 {[%clk 0:03:00.1]} 3... Nc6 {[%clk
0:02:59.7]} 4. d4 {[%clk 0:03:00.6]} 4... exd4 {[%clk 0:02:59.7]} 5. Nxd4 {[%clk
0:03:01.4]} 5... Bb4 {[%clk 0:03:00.3]} 6. Nxc6 {[%clk 0:03:01.5]} 6... bxc6
{[%clk 0:03:01]} 7. Bd3 {[%clk 0:03:01.8]} 7... d5 {[%clk 0:03:01.6]} 8. exd5
{[%clk 0:03:02.2]} 8... cxd5 {[%clk 0:03:01.1]} 9. O-O {[%clk 0:03:02.6]} 9...
O-O {[%clk 0:03:01.7]} 10. Bg5 {[%clk 0:02:59.9]} 10... c6 {[%clk 0:02:58.7]}
11. Qf3 {[%clk 0:03:00]} 11... h6 {[%clk 0:02:58]} 12. Bxf6 {[%clk 0:02:57.1]}
12... Qxf6 {[%clk 0:02:58.9]} 13. Qxf6 {[%clk 0:02:57.3]} 13... gxf6 {[%clk
0:02:59.8]} 14. Ne2 {[%clk 0:02:56.5]} 14... Rb8 {[%clk 0:02:57.1]} 15. Nd4
{[%clk 0:02:52.6]} 15... Bd7 {[%clk 0:02:56.6]} 16. Nf5 {[%clk 0:02:51.2]} 16...
Bxf5 {[%clk 0:02:54.4]} 17. Bxf5 {[%clk 0:02:52.1]} 17... Bd6 {[%clk 0:02:53.9]}
18. b3 {[%clk 0:02:47.3]} 18... Rbd8 {[%clk 0:02:49.1]} 19. Rad1 {[%clk
0:02:45.9]} 19... Rfe8 {[%clk 0:02:48.4]} 20. Rfe1 {[%clk 0:02:45.8]} 20... Re5
{[%clk 0:02:42.5]} 21. Bd3 {[%clk 0:02:35.7]} 21... Rde8 {[%clk 0:02:31.7]} 22.
Kf1 {[%clk 0:02:21.6]} 22... Bb4 {[%clk 0:02:31.4]} 23. Re2 {[%clk 0:02:19]}
23... Kf8 {[%clk 0:01:51.4]} 24. g3 {[%clk 0:02:17.5]} 24... a5 {[%clk 0:01:48]}
25. Ba6 {[%clk 0:02:10.8]} 25... R8e6 {[%clk 0:01:33.5]} 26. a4 {[%clk
0:02:05.1]} 26... Ke7 {[%clk 0:01:33]} 27. Bd3 {[%clk 0:01:52]} 27... Kd6 {[%clk
0:01:31.8]} 28. Ba6 {[%clk 0:01:42.4]} 28... Kc5 {[%clk 0:01:29.9]} 29. h4
{[%clk 0:01:38.9]} 29... Re8 {[%clk 0:01:20.9]} 30. Bd3 {[%clk 0:01:33.6]} 30...
Bc3 {[%clk 0:01:00.4]} 31. Ba6 {[%clk 0:01:32]} 31... Kb4 {[%clk 0:01:00.1]} 32.
Bd3 {[%clk 0:01:27.1]} 32... Bb2 {[%clk 0:00:53.2]} 33. Ba6 {[%clk 0:01:25.2]}
33... R8e7 {[%clk 0:00:46.1]} 34. Bd3 {[%clk 0:00:43.6]} 34... Kc3 {[%clk
0:00:43.3]} 35. Ba6 {[%clk 0:00:43.1]} 35... Rxe2 {[%clk 0:00:41.8]} 36. Bxe2
{[%clk 0:00:40.9]} 36... Kxc2 {[%clk 0:00:41.9]} 37. Rd3 {[%clk 0:00:41.1]}
37... Bc3 {[%clk 0:00:40.3]} 38. Rf3 {[%clk 0:00:34.1]} 38... Kxb3 {[%clk
0:00:39.5]} 39. Bd1+ {[%clk 0:00:34.1]} 39... Kb2 {[%clk 0:00:32.5]} 40. Kg2
{[%clk 0:00:34.1]} 40... d4 {[%clk 0:00:25.3]} 41. Rxf6 {[%clk 0:00:29.6]} 41...
c5 {[%clk 0:00:23.3]} 42. Rxh6 {[%clk 0:00:24.9]} 42... Re1 {[%clk 0:00:20.1]}
43. Bf3 {[%clk 0:00:20.6]} 43... d3 {[%clk 0:00:20.2]} 44. Rd6 {[%clk
0:00:19.3]} 44... Bd4 {[%clk 0:00:20.7]} 45. h5 {[%clk 0:00:16.8]} 45... Re2
{[%clk 0:00:20.1]} 46. Rb6+ {[%clk 0:00:09.1]} 46... Kc1 {[%clk 0:00:13]} 47.
Kh3 {[%clk 0:00:03.6]} 47... Rxf2 {[%clk 0:00:13.6]} 48. Bg4 {[%clk 0:00:03.7]}
48... d2 {[%clk 0:00:14.2]} 49. h6 {[%clk 0:00:03.9]} 49... Rf6 {[%clk
0:00:10.9]} 50. Rxf6 {[%clk 0:00:02.3]} 50... Bxf6 {[%clk 0:00:11.8]} 51. Bf3
{[%clk 0:00:01.8]} 51... d1=Q {[%clk 0:00:12.1]} 52. Bxd1 {[%clk 0:00:02]} 52...
Kxd1 {[%clk 0:00:13]} 53. Kg4 {[%clk 0:00:02.6]} 0-1

[Event "Early-Titled-Tuesday-Blitz-March-19-2024"]
[Site "Chess.com"]
[Date "2024.03.19"]
[Round "10"]
[White "wannabe2700"]
[Black "Arystanner"]
[Result "0-1"]
[WhiteElo "2636"]
[BlackElo "2851"]
[TimeControl "180+1"]
[EndTime "9:55:58 PDT"]
[Termination "Arystanner won on time"]

1. b3 {[%clk 0:03:00.9]} 1... d5 {[%clk 0:02:59.7]} 2. Bb2 {[%clk 0:03:01.8]}
2... Nf6 {[%clk 0:02:59.3]} 3. Nf3 {[%clk 0:02:59.7]} 3... e6 {[%clk 0:02:59.3]}
4. g3 {[%clk 0:03:00.1]} 4... Be7 {[%clk 0:02:59.4]} 5. Bg2 {[%clk 0:02:59.9]}
5... O-O {[%clk 0:03:00.2]} 6. c4 {[%clk 0:02:57.3]} 6... b6 {[%clk 0:03:00.7]}
7. O-O {[%clk 0:02:55.4]} 7... Bb7 {[%clk 0:03:01]} 8. d4 {[%clk 0:02:50.4]}
8... c5 {[%clk 0:03:00.3]} 9. cxd5 {[%clk 0:02:50.1]} 9... Nxd5 {[%clk
0:02:58.5]} 10. Nc3 {[%clk 0:02:32.7]} 10... Nxc3 {[%clk 0:02:56]} 11. Bxc3
{[%clk 0:02:33.6]} 11... Bf6 {[%clk 0:02:53.4]} 12. Rc1 {[%clk 0:02:32.2]} 12...
Nd7 {[%clk 0:02:50.2]} 13. dxc5 {[%clk 0:02:04.2]} 13... Nxc5 {[%clk 0:02:48.9]}
14. Ne5 {[%clk 0:02:03.1]} 14... Bxg2 {[%clk 0:02:46.3]} 15. Kxg2 {[%clk
0:02:04]} 15... Qc8 {[%clk 0:02:44.8]} 16. Nd3 {[%clk 0:02:01.8]} 16... Qb7+
{[%clk 0:02:34.2]} 17. f3 {[%clk 0:02:01.4]} 17... Nxd3 {[%clk 0:02:31.4]} 18.
Qxd3 {[%clk 0:02:00.9]} 18... Rfd8 {[%clk 0:02:30.8]} 19. Qe3 {[%clk 0:01:59.1]}
19... Bxc3 {[%clk 0:02:29.8]} 20. Rxc3 {[%clk 0:01:58.1]} 20... Rd7 {[%clk
0:02:23.9]} 21. Rfc1 {[%clk 0:01:57.8]} 21... Rad8 {[%clk 0:02:24.5]} 22. R1c2
{[%clk 0:01:54.6]} 22... h6 {[%clk 0:02:23.8]} 23. h4 {[%clk 0:01:54.2]} 23...
Qa6 {[%clk 0:02:08.3]} 24. a4 {[%clk 0:01:54.4]} 24... Qa5 {[%clk 0:02:08]} 25.
Qf4 {[%clk 0:01:40.2]} 25... Rd4 {[%clk 0:01:47.2]} 26. Qc7 {[%clk 0:01:35]}
26... Rd1 {[%clk 0:01:42]} 27. Qe7 {[%clk 0:01:28.6]} 27... R1d7 {[%clk
0:01:33.9]} 28. Qa3 {[%clk 0:01:28]} 28... Qe5 {[%clk 0:01:33.9]} 29. Rc8 {[%clk
0:01:24.6]} 29... Rxc8 {[%clk 0:01:32.1]} 30. Rxc8+ {[%clk 0:01:24.5]} 30... Kh7
{[%clk 0:01:32.9]} 31. Qa2 {[%clk 0:01:23.2]} 31... Qe3 {[%clk 0:01:29]} 32.
Qc2+ {[%clk 0:01:22.9]} 32... f5 {[%clk 0:01:29.7]} 33. Rc3 {[%clk 0:01:23.1]}
33... Qe5 {[%clk 0:01:21.2]} 34. Rc6 {[%clk 0:01:17.6]} 34... Rd5 {[%clk
0:01:08.4]} 35. Rc3 {[%clk 0:00:44.9]} 35... h5 {[%clk 0:01:01.8]} 36. Rd3
{[%clk 0:00:32.6]} 36... Rc5 {[%clk 0:00:58.3]} 37. Qd2 {[%clk 0:00:32.9]} 37...
Qf6 {[%clk 0:00:48.9]} 38. Rd6 {[%clk 0:00:31.1]} 38... Qe5 {[%clk 0:00:36.2]}
39. Rd7 {[%clk 0:00:24.1]} 39... Rd5 {[%clk 0:00:34.6]} 40. Rxd5 {[%clk
0:00:23.7]} 40... exd5 {[%clk 0:00:35.3]} 41. Kf2 {[%clk 0:00:23.3]} 41... d4
{[%clk 0:00:31.2]} 42. Qg5 {[%clk 0:00:23.4]} 42... g6 {[%clk 0:00:31.8]} 43. g4
{[%clk 0:00:22.7]} 43... hxg4 {[%clk 0:00:24.3]} 44. fxg4 {[%clk 0:00:22.8]}
44... Qh2+ {[%clk 0:00:25]} 45. Kf3 {[%clk 0:00:04.4]} 45... Qh3+ {[%clk
0:00:21.7]} 46. Kf2 {[%clk 0:00:04.8]} 46... Qh2+ {[%clk 0:00:17.9]} 47. Kf3
{[%clk 0:00:04.6]} 47... Qh1+ {[%clk 0:00:18.5]} 48. Kf2 {[%clk 0:00:05.1]}
48... Qe4 {[%clk 0:00:17.7]} 49. h5 {[%clk 0:00:05.2]} 49... fxg4 {[%clk
0:00:15.5]} 50. hxg6+ {[%clk 0:00:02.5]} 50... Qxg6 {[%clk 0:00:16.4]} 51. Qe7+
{[%clk 0:00:01.4]} 51... Kh6 {[%clk 0:00:15.7]} 0-1

[Event "Early-Titled-Tuesday-Blitz-March-19-2024"]
[Site "Chess.com"]
[Date "2024.03.19"]
[Round "10"]
[White "alexrustemov"]
[Black "GodzillaChessYoutube"]
[Result "1-0"]
[WhiteElo "2876"]
[BlackElo "2671"]
[TimeControl "180+1"]
[EndTime "9:56:00 PDT"]
[Termination "alexrustemov won by resignation"]

1. d4 {[%clk 0:02:56.9]} 1... Nf6 {[%clk 0:02:54]} 2. c4 {[%clk 0:02:56.6]} 2...
e6 {[%clk 0:02:54.7]} 3. Nf3 {[%clk 0:02:56.4]} 3... d5 {[%clk 0:02:54.3]} 4.
Nc3 {[%clk 0:02:56]} 4... Be7 {[%clk 0:02:48.2]} 5. Bg5 {[%clk 0:02:55.3]} 5...
O-O {[%clk 0:02:45.8]} 6. e3 {[%clk 0:02:55.4]} 6... Nbd7 {[%clk 0:02:37.7]} 7.
Qc2 {[%clk 0:02:55]} 7... c6 {[%clk 0:02:30.6]} 8. Rc1 {[%clk 0:02:52.4]} 8...
Nh5 {[%clk 0:02:25.5]} 9. Bxe7 {[%clk 0:02:48.7]} 9... Qxe7 {[%clk 0:02:26.4]}
10. Bd3 {[%clk 0:02:48.4]} 10... g6 {[%clk 0:02:25.1]} 11. O-O {[%clk 0:02:48]}
11... dxc4 {[%clk 0:02:04.5]} 12. Bxc4 {[%clk 0:02:47.7]} 12... e5 {[%clk
0:02:05.4]} 13. d5 {[%clk 0:02:31.5]} 13... Nb6 {[%clk 0:02:03.8]} 14. Bb3
{[%clk 0:02:29.5]} 14... Bg4 {[%clk 0:01:55.1]} 15. Qe4 {[%clk 0:02:22.7]} 15...
Bxf3 {[%clk 0:01:35.8]} 16. Qxf3 {[%clk 0:02:22.5]} 16... cxd5 {[%clk
0:01:21.7]} 17. Nxd5 {[%clk 0:02:22]} 17... Nxd5 {[%clk 0:01:22.6]} 18. Bxd5
{[%clk 0:02:22.3]} 18... Nf6 {[%clk 0:01:14.9]} 19. Bb3 {[%clk 0:02:09]} 19...
Rac8 {[%clk 0:01:09.2]} 20. h3 {[%clk 0:02:06.4]} 20... Kg7 {[%clk 0:01:06.8]}
21. Rfd1 {[%clk 0:01:58.4]} 21... Rxc1 {[%clk 0:00:59.4]} 22. Rxc1 {[%clk
0:01:58.1]} 22... Rd8 {[%clk 0:00:59.8]} 23. g3 {[%clk 0:01:50.4]} 23... Rd7
{[%clk 0:00:58.2]} 24. Kg2 {[%clk 0:01:50.2]} 24... Rc7 {[%clk 0:00:57.4]} 25.
Qd1 {[%clk 0:01:43.4]} 25... Rxc1 {[%clk 0:00:56.3]} 26. Qxc1 {[%clk 0:01:44]}
26... Qd7 {[%clk 0:00:25.7]} 27. Qc4 {[%clk 0:01:41.3]} 27... Qc6+ {[%clk
0:00:25.4]} 28. Qxc6 {[%clk 0:01:40.4]} 28... bxc6 {[%clk 0:00:26.3]} 29. Kf3
{[%clk 0:01:39.3]} 29... Kf8 {[%clk 0:00:26.1]} 30. Ba4 {[%clk 0:01:32.8]} 30...
c5 {[%clk 0:00:24.7]} 31. Bb3 {[%clk 0:01:28.4]} 31... Ke7 {[%clk 0:00:24.1]}
32. Ke2 {[%clk 0:01:28.2]} 32... h6 {[%clk 0:00:24.4]} 33. Kd3 {[%clk
0:01:27.5]} 33... Nd7 {[%clk 0:00:16.5]} 34. Kc4 {[%clk 0:01:25.6]} 34... Kd6
{[%clk 0:00:13.4]} 35. Kb5 {[%clk 0:01:25.4]} 35... f5 {[%clk 0:00:10.8]} 36.
Ka6 {[%clk 0:01:24]} 36... e4 {[%clk 0:00:11.4]} 37. Kxa7 {[%clk 0:01:22.5]}
37... Ne5 {[%clk 0:00:12.3]} 38. Kb6 {[%clk 0:01:18]} 38... Nd3 {[%clk
0:00:12.7]} 39. a4 {[%clk 0:01:17]} 39... Nxb2 {[%clk 0:00:05.8]} 40. a5 {[%clk
0:01:16.4]} 40... c4 {[%clk 0:00:06.4]} 41. Bc2 {[%clk 0:01:11.6]} 41... Nd3
{[%clk 0:00:06.1]} 42. a6 {[%clk 0:01:10.4]} 42... Nb4 {[%clk 0:00:06.7]} 43. a7
{[%clk 0:01:10.2]} 43... Nd5+ {[%clk 0:00:07.3]} 44. Kb7 {[%clk 0:01:02.4]}
44... Nc7 {[%clk 0:00:07.7]} 45. h4 {[%clk 0:00:54.4]} 45... g5 {[%clk
0:00:07.9]} 46. h5 {[%clk 0:00:52.6]} 46... Kd7 {[%clk 0:00:06.4]} 47. g4 {[%clk
0:00:43]} 47... fxg4 {[%clk 0:00:06]} 48. Bxe4 {[%clk 0:00:42.8]} 48... c3
{[%clk 0:00:06.3]} 49. Bc2 {[%clk 0:00:41.6]} 49... Kd8 {[%clk 0:00:06.4]} 50.
Kc6 {[%clk 0:00:34.8]} 50... Kc8 {[%clk 0:00:05.6]} 51. Bf5+ {[%clk 0:00:32]}
51... Kd8 {[%clk 0:00:05.9]} 52. Kb7 {[%clk 0:00:32.6]} 52... g3 {[%clk
0:00:03.8]} 53. fxg3 {[%clk 0:00:32.3]} 53... c2 {[%clk 0:00:02.7]} 54. Bxc2
{[%clk 0:00:31.8]} 54... Kd7 {[%clk 0:00:03.6]} 55. g4 {[%clk 0:00:28.7]} 55...
Kd6 {[%clk 0:00:04.5]} 56. Bf5 {[%clk 0:00:27.5]} 56... Na8 {[%clk 0:00:02.3]}
57. Kxa8 {[%clk 0:00:26.5]} 57... Kc7 {[%clk 0:00:03.2]} 58. e4 {[%clk
0:00:26.3]} 1-0